bitfinex-derivatives/quotes_ETHF0:USTF0_20240928
["timestamp","ask_amount","ask_price","bid_price","bid_amount"]
[1727544533060,3.2948,2683.2,2682.6,0.37267]
[1727544533247,3.2078,2683.3,2682.9,0.37262]
[1727544533452,4.22603,2684.0,2683.2,3.58]
[1727544533750,3.2078,2683.7,2683.3,0.945]
[1727544533947,3.2078,2683.7,2683.3,4.9973357]
[1727544533948,3.58032,2683.7,2683.3,4.9973357]
[1727544534146,3.2078,2683.7,2683.3,4.0523357]
[1727544534359,0.37256,2683.5,2683.3,4.0523357]
[1727544534659,0.37255,2683.6,2683.1,0.945]
[1727544534858,3.2078,2683.7,2683.1,0.945]
[1727544535061,0.37255,2683.5,2683.2,4.16816531]
[1727544535356,3.2078,2684.1,2683.3,3.58]
[1727544535558,3.2078,2683.8,2683.4,0.945]
[1727544535748,0.37248,2684.1,2683.4,4.32839239]
[1727544536060,3.97666,2684.2,2683.5,0.37254]
[1727544536259,3.6042,2684.2,2683.5,0.945]
[1727544536451,3.6042,2684.2,2683.0,3.2078]
[1727544536452,0.93103,2684.6,2683.6,4.10255752]
[1727544536653,3.2078,2683.7,2683.4,0.944]
[1727544536961,0.37254,2683.6,2683.5,4.10255752]
[1727544537157,0.37258,2683.3,2683.1,0.944]
[1727544537477,0.37253,2683.7,2683.5,4.13827041]
[1727544537660,3.58031,2683.8,2683.2,4.13827041]
[1727544537962,3.2078,2683.8,2683.3,0.37258]
[1727544538261,3.58031,2683.8,2683.3,4.13827041]
[1727544538453,3.58031,2683.8,2683.2,4.51085041]
[1727544538657,3.2078,2683.8,2683.4,3.94921512]
[1727544538854,0.93118,2684.1,2683.3,3.94921512]
[1727544538855,3.58036,2683.5,2683.3,3.94921512]
[1727544539063,3.2078,2683.5,2683.2,4.89321512]
[1727544539260,3.2078,2683.5,2683.3,3.7264]
[1727544539450,0.93118,2684.1,2683.3,3.7264]
[1727544539451,3.58032,2683.8,2683.4,4.00581238]
[1727544539660,3.2078,2683.8,2683.4,0.37256]
[1727544539962,3.2078,2683.8,2683.5,4.37835238]
[1727544540261,3.2078,2683.8,2683.4,4.37837238]
[1727544540468,0.37252,2683.7,2683.4,4.00581238]
[1727544540667,0.37252,2683.7,2683.3,3.58]
[1727544540668,3.58032,2683.8,2683.6,3.9843999]
[1727544540962,0.087,2684.5,2683.6,3.58]
[1727544541162,3.2078,2684.6,2684.5,0.37241]
[1727544541354,3.2078,2684.6,2684.5,3.7248]
[1727544541554,3.2078,2684.6,2684.5,14.01600967]
[1727544541756,3.2078,2684.6,2684.5,15.03100967]
[1727544541962,3.2078,2685.1,2684.5,18.23880967]
[1727544542166,3.2078,2685.1,2685.0,3.95234]
[1727544542354,0.37225,2685.7,2685.0,4.595]
[1727544542555,3.2078,2685.3,2685.0,7.79071211]
[1727544542754,0.37237,2684.9,2684.3,3.95243]
[1727544542955,3.58017,2684.9,2684.4,1.015]
[1727544543163,0.37239,2684.7,2684.4,4.21071211]
[1727544543355,0.93073,2685.4,2683.7,4.96751]
[1727544543356,3.2078,2684.5,2683.7,4.96751]
[1727544543663,3.2078,2684.5,2683.7,8.88581241]
[1727544543664,0.37248,2684.0,2683.7,8.88581241]
[1727544543863,0.93104,2684.5,2683.7,4.29081241]
[1727544543864,0.37251,2683.8,2683.7,4.29081241]
[1727544544059,0.37251,2683.8,2683.4,4.595]
[1727544544363,0.3695,2684.4,2683.7,4.11948516]
[1727544544364,3.2078,2684.0,2683.7,4.11948516]
[1727544544575,3.2078,2684.0,2683.7,4.05794278]
[1727544544861,3.2078,2684.0,2683.3,1.015]
[1727544544862,0.37253,2683.7,2683.3,1.015]
[1727544545054,3.2078,2683.5,2683.1,3.58]
[1727544545260,3.2078,2683.5,2683.3,4.11948516]
[1727544545457,3.2078,2683.5,2683.1,3.58]
[1727544545458,3.58035,2683.5,2683.1,3.58]
[1727544545763,1.31275,2683.9,2682.7,3.58]
[1727544545764,3.2078,2683.2,2682.7,3.58]
[1727544545964,3.5804,2683.2,2682.7,3.58]
[1727544546155,3.5804,2683.2,2683.1,4.09995342]
[1727544546358,3.5804,2683.2,2682.4,12.44599541]
[1727544546359,3.2078,2683.2,2682.8,4.09995342]
[1727544546558,3.2078,2682.9,2682.1,6.7878]
[1727544546762,3.2078,2682.9,2682.5,3.94945756]
[1727544546957,0.3988,2683.4,2682.9,3.94945756]
[1727544546958,3.2078,2683.2,2682.9,3.94945756]
[1727544547265,3.2078,2683.2,2682.9,1.38663]
[1727544547474,3.2078,2683.2,2683.0,8.03564866]
[1727544547760,0.37252,2683.8,2683.1,0.3726]
[1727544547964,0.03062131,2683.5,2683.4,3.58]
[1727544548161,0.40317131,2683.5,2683.4,3.58]
[1727544548460,0.03062131,2683.5,2683.4,3.47976218]
[1727544548654,0.40317131,2683.5,2683.4,3.47976218]
[1727544548855,0.40317131,2683.5,2682.7,3.2078]
[1727544548856,3.75702131,2683.5,2682.7,6.7878]
[1727544549057,0.03062131,2683.1,2682.7,6.7878]
[1727544549256,0.03062131,2683.1,2682.8,5.10008645]
[1727544549467,0.40324131,2683.1,2682.8,4.08608645]
[1727544549667,0.37263,2682.9,2682.8,4.08608645]
[1727544549860,0.37266,2682.8,2682.4,4.594]
[1727544550059,0.03062131,2682.6,2682.4,3.58]
[1727544550266,0.03062131,2682.6,2682.5,4.2229489]
[1727544550462,0.40329131,2682.6,2682.5,4.2229489]
[1727544550662,3.75862131,2682.6,2681.7,6.7878]
[1727544550862,0.37273,2682.2,2681.8,1.073]
[1727544551069,0.37272,2682.3,2682.2,4.09522216]
[1727544551265,3.6094,2682.5,2681.9,3.98931173]
[1727544551569,3.6094,2682.5,2681.7,4.653]
[1727544551570,0.37274,2682.2,2682.1,3.99640344]
[1727544551766,3.58054,2682.2,2682.1,3.99640344]
[1727544551962,0.37274,2682.1,2681.5,0.37281]
[1727544552161,3.2078,2682.2,2681.5,0.37281]
[1727544552358,3.2078,2682.2,2681.5,3.99640344]
[1727544552671,0.37279,2681.8,2681.5,3.99640344]
[1727544552874,3.2078,2681.9,2681.5,3.99640344]
[1727544553371,0.03074204,2681.7,2681.6,3.2078]
[1727544553564,0.03074204,2681.7,2681.5,3.99640344]
[1727544553772,0.03074204,2681.7,2681.4,5.02583]
[1727544553965,0.03074204,2681.7,2681.5,4.09224314]
[1727544554172,0.40355204,2681.6,2681.5,4.09224314]
[1727544554371,0.40355204,2681.6,2681.2,1.073]
[1727544554372,0.37283,2681.5,2681.2,1.073]
[1727544554671,0.37283,2681.5,2681.2,3.94230793]
[1727544554879,3.61136204,2681.6,2681.2,3.94230793]
[1727544555169,0.03074204,2681.4,2681.2,3.94230793]
[1727544555372,0.37286,2681.3,2680.8,3.95292]
[1727544555572,0.37288,2681.2,2680.8,3.58]
[1727544555766,3.23854204,2681.4,2680.9,3.80108608]
[1727544556071,0.37291,2681.0,2680.5,1.44596]
[1727544556270,0.03074204,2680.8,2680.5,1.44596]
[1727544556461,0.03074204,2680.8,2680.7,4.01895868]
[1727544556669,0.03074204,2680.8,2680.5,4.39191868]
[1727544556872,0.03074204,2680.8,2679.2,3.9608]
[1727544556873,0.37297,2680.5,2679.2,3.9608]
[1727544557173,0.37297,2680.5,2679.1,0.9329]
[1727544557174,0.087,2680.7,2680.6,4.39190868]
[1727544557362,0.03074204,2680.7,2680.6,7.59895868]
[1727544557672,0.03074204,2680.7,2680.6,11.50685622]
[1727544558269,0.03074204,2680.7,2680.6,7.77645622]
[1727544558575,0.03074204,2680.7,2680.6,8.24238517]
[1727544558769,0.03074204,2680.7,2680.6,4.66238517]
[1727544559569,0.03074204,2680.7,2680.6,0.46592895]
[1727544563576,0.03074204,2680.7,2680.6,1.21141527]
[1727544563772,0.03074204,2680.7,2680.6,4.94181527]
[1727544563980,0.03074204,2680.7,2680.6,12.98564298]
[1727544564465,0.03074204,2680.7,2680.6,13.31415666]
[1727544564976,0.03074204,2680.7,2680.6,19.31415666]
[1727544565874,0.03074204,2680.7,2680.6,13.31415666]
[1727544566075,0.03074204,2680.7,2680.6,18.24015666]
[1727544566377,0.03074204,2680.7,2680.6,19.86878271]
[1727544566570,0.03074204,2680.7,2680.6,13.86878271]
[1727544567171,0.03074204,2680.7,2680.6,4.92975666]
[1727544567575,0.03074204,2680.7,2680.6,4.55680666]
[1727544568278,0.03074204,2680.7,2680.6,0.46592895]
[1727544568471,3.76114204,2680.7,2680.6,0.46592895]
[1727544568780,4.13408204,2680.7,2680.6,0.46592895]
[1727544569465,3.76114204,2680.7,2680.6,0.46592895]
[1727544569668,3.76114204,2680.7,2680.3,3.95299]
[1727544569876,0.03074204,2680.7,2680.3,3.95299]
[1727544570181,0.40368204,2680.7,2680.3,3.58]
[1727544570382,0.03074204,2680.5,2680.3,3.58]
[1727544571273,0.03074204,2680.5,2680.1,0.37301]
[1727544571474,0.03074204,2680.3,2680.1,0.37301]
[1727544571671,0.03074204,2680.3,2680.1,4.30039657]
[1727544572479,3.58076,2680.6,2680.2,0.34226796]
[1727544572672,0.37296,2680.6,2680.1,4.30039657]
[1727544572871,0.37296,2680.6,2680.3,3.97223249]
[1727544573075,0.37296,2680.6,2680.2,3.97223249]
[1727544573276,0.37297,2680.5,2680.2,3.97223249]
[1727544573476,0.37297,2680.5,2680.0,3.58083]
[1727544573680,0.37297,2680.5,2680.1,4.04688306]
[1727544573884,0.37297,2680.5,2680.3,4.04688306]
[1727544574077,0.37297,2680.5,2680.0,3.58083]
[1727544574280,0.37297,2680.5,2680.1,4.04688306]
[1727544574578,0.37297,2680.5,2680.0,3.58083]
[1727544574782,0.37297,2680.5,2680.2,4.28504661]
[1727544574988,0.37297,2680.5,2680.0,3.58083]
[1727544574989,0.37297,2680.5,2680.1,4.28504661]
[1727544575181,0.37297,2680.5,2680.0,0.37303]
[1727544575670,0.37303,2680.1,2679.7,1.074]
[1727544575875,0.37303,2680.1,2679.7,1.44708]
[1727544576069,3.2078,2680.2,2680.0,3.91511149]
[1727544576274,0.4068,2680.1,2679.8,3.91511149]
[1727544576471,0.4068,2680.1,2679.7,1.44707]
[1727544576886,0.4068,2680.1,2679.8,3.98050558]
[1727544577883,0.4068,2680.1,2679.8,4.35355558]
[1727544580486,3.2078,2680.5,2679.8,3.98050558]
[1727544580683,3.2078,2680.5,2679.9,3.2078]
[1727544580878,3.58077,2680.5,2680.1,0.37302]
[1727544581277,3.58077,2680.5,2680.2,4.25610592]
[1727544581583,3.2078,2680.5,2680.2,0.37301]
[1727544581776,3.58078,2680.5,2680.1,4.35889205]
[1727544581984,3.2078,2680.5,2680.2,0.37301]
[1727544582179,3.2078,2680.5,2680.2,4.35888205]
[1727544582500,3.58077,2680.5,2679.9,6.7878]
[1727544582678,3.2078,2680.5,2679.9,6.7878]
[1727544582879,3.2078,2680.5,2680.3,0.37299]
[1727544583578,3.2078,2680.5,2679.9,6.7878]
[1727544583981,3.2078,2680.5,2680.3,0.37299]
[1727544584179,0.37298,2680.4,2680.1,0.37302]
[1727544584584,0.37298,2680.4,2680.2,4.12125574]
[1727544584780,0.37298,2680.4,2680.2,4.49426574]
[1727544585883,0.37298,2680.4,2680.2,4.12125574]
[1727544586274,0.37298,2680.4,2680.1,0.37301]
[1727544586480,0.37298,2680.4,2680.2,0.37301]
[1727544587593,0.37298,2680.4,2680.1,0.37302]
[1727544587882,0.3687,2680.4,2680.1,0.37302]
[1727544588084,0.373,2680.3,2680.1,0.37302]
[1727544588886,0.373,2680.3,2680.0,0.37303]
[1727544589385,0.37301,2680.2,2680.0,0.37303]
[1727544589585,0.3687,2680.4,2679.9,3.58085]
[1727544589788,0.37302,2680.2,2679.9,3.58084]
[1727544590685,1.30118,2680.4,2679.9,3.58084]
[1727544590879,0.37301,2680.2,2680.0,0.37303]
[1727544591081,0.37301,2680.2,2679.9,3.58084]
[1727544591387,1.30118,2680.4,2679.9,3.58085]
[1727544591388,0.37303,2680.1,2679.9,3.58085]
[1727544591587,0.3695,2680.0,2679.9,3.58085]
[1727544599194,0.3695,2680.0,2679.9,0.37305]
[1727544601592,3.91368021,2680.8,2679.9,0.37305]
[1727544601593,2.98134021,2680.8,2679.9,15.849]
[1727544601788,3.6016,2680.9,2680.6,2.91]
[1727544602099,0.37293,2680.8,2680.6,3.28295]
[1727544602291,0.3938,2680.9,2680.7,0.37294]
[1727544602692,3.2078,2681.2,2680.8,2.91]
[1727544602897,0.76663,2681.5,2681.2,0.37286]
[1727544603200,0.3938,2681.5,2681.2,0.37286]
[1727544603399,0.3938,2681.5,2681.1,2.91]
[1727544603400,0.3938,2681.5,2681.3,0.37285]
[1727544603696,0.76663,2681.5,2681.3,0.37285]
[1727544604799,0.37284,2681.4,2681.2,0.37286]
[1727544605004,0.3938,2681.5,2680.8,7.7201]
[1727544605192,0.3938,2681.5,2680.9,4.10647125]
[1727544605398,0.76664,2681.5,2680.9,4.10647125]
[1727544605786,2.98134021,2682.0,2681.6,0.37281]
[1727544605787,3.2948,2682.0,2681.6,0.37281]
[1727544605996,0.37285,2681.4,2681.0,0.3814]
[1727544606293,0.087,2682.0,2681.9,0.37277]
[1727544606492,4.0719,2682.8,2681.9,4.686]
[1727544606694,4.0719,2682.8,2682.1,3.2078]
[1727544606695,3.9849,2682.8,2682.1,3.2078]
[1727544606887,0.087,2683.2,2683.1,0.3726]
[1727544607086,0.3844,2683.5,2682.7,4.3138]
[1727544607292,0.3844,2683.5,2683.0,0.37261]
[1727544607891,0.3844,2683.5,2682.8,4.32734544]
[1727544608286,6.935,2683.4,2682.7,3.2078]
[1727544608486,6.935,2683.4,2682.3,4.686]
[1727544608487,3.2078,2683.4,2682.6,3.2078]
[1727544608687,3.2078,2683.4,2682.8,0.37264]
[1727544608893,3.58037,2683.4,2682.8,0.37264]
[1727544609299,3.58037,2683.4,2682.6,3.2078]
[1727544609300,3.58037,2683.4,2682.9,0.37263]
[1727544609496,3.58037,2683.4,2682.8,0.37264]
[1727544609896,0.37259,2683.3,2682.7,0.37265]
[1727544610103,0.37259,2683.3,2682.3,4.686]
[1727544610104,3.58043,2683.0,2682.4,1.106]
[1727544610299,3.2078,2683.0,2682.6,0.37266]
[1727544610499,3.2078,2683.3,2682.8,0.37265]
[1727544610697,0.3726,2683.2,2682.7,0.37265]
[1727544611199,3.2078,2683.3,2682.7,0.37265]
[1727544611604,3.2078,2683.3,2682.6,3.2078]
[1727544611605,0.3726,2683.2,2682.6,3.2078]
[1727544611799,0.3726,2683.2,2682.7,0.37266]
[1727544612000,0.3726,2683.2,2682.6,3.58047]
[1727544612203,0.3726,2683.2,2682.7,0.37266]
[1727544612902,3.2078,2683.3,2682.6,3.58046]
[1727544613101,0.37261,2683.1,2682.6,3.58047]
[1727544613307,0.3726,2683.2,2682.7,0.37266]
[1727544613700,4.0998,2683.2,2682.6,3.58047]
[1727544613895,0.3726,2683.2,2682.6,3.58047]
[1727544614102,0.3726,2683.2,2682.6,0.37267]
[1727544614605,0.93164,2682.8,2681.9,3.2078]
[1727544614904,1.1134,2682.7,2681.9,3.2078]
[1727544615204,0.37268,2682.6,2682.0,0.37276]
[1727544615608,4.3212,2682.7,2681.9,3.2078]
[1727544615806,0.3727,2682.5,2682.0,0.37275]
[1727544615996,4.3212,2682.7,2681.9,3.2078]
[1727544616399,0.37272,2682.3,2681.9,3.58056]
[1727544616702,4.3212,2682.7,2681.9,3.2078]
[1727544616905,0.37274,2682.2,2681.9,3.2078]
[1727544617105,4.3212,2682.7,2681.9,3.58056]
[1727544617303,0.37271,2682.4,2681.9,3.58056]
[1727544617700,0.37272,2682.3,2681.9,3.2078]
[1727544617900,0.37271,2682.4,2681.9,3.58057]
[1727544618100,0.37272,2682.3,2681.9,3.2078]
[1727544618406,0.37271,2682.4,2681.9,3.58056]
[1727544618808,6.203,2682.6,2681.9,3.2078]
[1727544618809,0.37272,2682.3,2681.9,3.2078]
[1727544619004,0.37272,2682.3,2681.9,3.58057]
[1727544619202,0.37271,2682.4,2681.9,3.58056]
[1727544620023,6.203,2682.6,2682.0,0.37276]
[1727544620203,0.37271,2682.4,2682.0,0.37276]
[1727544620403,0.37271,2682.4,2681.9,3.58057]
[1727544620806,0.37272,2682.3,2681.9,3.58057]
[1727544621110,6.203,2682.6,2681.9,3.58057]
[1727544621111,0.37271,2682.4,2681.9,3.58057]
[1727544621410,6.203,2682.6,2681.9,3.58057]
[1727544621606,0.37271,2682.4,2681.9,3.58057]
[1727544621802,0.37272,2682.3,2681.9,3.58057]
[1727544622007,0.37271,2682.4,2682.0,0.37276]
[1727544622310,6.203,2682.6,2681.9,3.2078]
[1727544622508,0.37272,2682.3,2681.9,3.2078]
[1727544622805,0.37273,2682.2,2681.9,3.2078]
[1727544623010,6.203,2682.6,2681.9,3.2078]
[1727544623502,0.37272,2682.3,2681.9,3.58057]
[1727544623700,0.37272,2682.3,2681.9,3.2078]
[1727544623904,0.37273,2682.2,2681.9,3.2078]
[1727544624109,6.203,2682.6,2681.9,3.58057]
[1727544624110,0.37272,2682.3,2681.9,3.58057]
[1727544624610,3.7288,2682.2,2681.6,0.3728]
[1727544624809,0.37276,2682.0,2681.5,3.2078]
[1727544625110,3.58055,2682.1,2681.7,0.3728]
[1727544625307,3.58055,2682.1,2681.5,3.2078]
[1727544625308,0.74937,2682.0,2681.6,0.37281]
[1727544625507,0.74936,2682.0,2681.5,3.2078]
[1727544625712,0.3766,2682.0,2681.5,3.2078]
[1727544626010,0.74936,2682.0,2681.6,0.37281]
[1727544626910,0.74936,2682.0,2681.7,0.3728]
[1727544627111,0.74936,2682.0,2681.5,3.2078]
[1727544627112,0.37277,2681.9,2681.6,0.3728]
[1727544627504,0.3766,2682.0,2681.7,0.37279]
[1727544627703,0.3766,2682.0,2681.6,0.37281]
[1727544627704,0.74937,2682.0,2681.6,0.37281]
[1727544628006,0.74937,2682.0,2681.7,0.3728]
[1727544628201,4.47817,2682.0,2681.7,0.3728]
[1727544628908,4.1054,2682.0,2681.7,0.3728]
[1727544629109,4.1054,2682.0,2681.6,2.91]
[1727544629301,0.3766,2682.0,2681.7,0.37279]
[1727544629715,4.1054,2682.0,2681.7,0.37279]
[1727544630010,3.7288,2682.0,2681.7,0.37279]
[1727544630406,4.10156,2682.0,2681.6,3.28281]
[1727544630612,0.37276,2682.0,2681.6,3.28281]
[1727544630813,0.37276,2682.0,2681.7,0.3728]
[1727544631205,4.10156,2682.0,2681.7,0.3728]
[1727544631916,4.10156,2682.0,2681.6,2.91]
[1727544632109,0.37276,2682.0,2681.6,2.91]
[1727544632505,0.37276,2682.0,2681.6,3.2828]
[1727544633006,0.37276,2682.0,2681.7,0.3728]
[1727544633205,0.37276,2682.0,2681.6,2.91]
[1727544633206,0.37276,2682.0,2681.6,3.2828]
[1727544633704,0.37276,2682.0,2681.7,0.3728]
[1727544634214,4.10156,2682.0,2681.7,0.3728]
[1727544634413,6.9366,2682.0,2681.7,0.3728]
[1727544634914,7.30936,2682.0,2681.7,0.3728]
[1727544635208,4.10156,2682.0,2681.7,0.3728]
[1727544635415,3.7288,2682.0,2681.6,3.28281]
[1727544635615,0.37277,2682.0,2681.6,0.37281]
[1727544635809,0.37278,2681.9,2681.6,0.37281]
[1727544636517,0.37278,2681.9,2681.5,3.2078]
[1727544636717,0.37278,2681.9,2681.6,0.37281]
[1727544636917,0.37278,2681.9,2681.5,3.58062]
[1727544637215,0.37278,2681.9,2681.6,0.37281]
[1727544637415,3.2078,2682.1,2681.6,0.37281]
[1727544637618,3.2078,2682.1,2681.5,3.2078]
[1727544637804,3.2842,2682.3,2681.8,0.37277]
[1727544638010,0.74692,2682.3,2681.9,2.91]
[1727544638411,0.3742,2682.3,2682.0,0.37275]
[1727544639411,0.74692,2682.3,2682.0,0.37275]
[1727544640318,0.74692,2682.3,2681.9,2.91]
[1727544640519,0.37274,2682.2,2681.9,0.37276]
[1727544640720,0.74692,2682.3,2682.0,0.37275]
[1727544641415,0.3742,2682.3,2682.1,0.37274]
[1727544641806,0.74692,2682.3,2682.0,0.37275]
[1727544642010,0.3742,2682.3,2682.0,0.37275]
[1727544642213,0.74692,2682.3,2682.0,0.37275]
[1727544642407,0.74692,2682.3,2681.9,2.91]
[1727544642408,0.3742,2682.3,2681.9,2.91]
[1727544642608,0.3742,2682.3,2682.0,0.37276]
[1727544643025,0.74692,2682.3,2682.0,0.37276]
[1727544643425,0.74692,2682.3,2681.9,2.91]
[1727544643426,0.37273,2682.2,2681.9,3.28277]
[1727544643626,0.74693,2682.3,2682.0,0.37276]
[1727544644216,0.37273,2682.2,2681.9,3.28277]
[1727544645019,0.37273,2682.2,2681.9,3.28276]
[1727544645319,0.37274,2682.2,2681.9,0.37276]
[1727544647222,0.37274,2682.2,2681.8,3.2078]
[1727544647223,0.3742,2682.3,2681.8,3.58057]
[1727544647413,0.3742,2682.3,2681.8,3.2078]
[1727544647616,0.3742,2682.3,2681.8,3.58059]
[1727544647822,0.37276,2682.1,2681.8,3.58059]
[1727544648025,0.3742,2682.3,2681.8,3.2078]
[1727544648328,0.37275,2682.1,2681.8,3.58058]
[1727544648722,0.3742,2682.3,2681.8,3.58058]
[1727544648914,0.37275,2682.1,2681.8,3.58058]
[1727544649313,0.3742,2682.3,2681.8,3.2078]
[1727544649522,0.37276,2682.1,2681.8,3.58058]
[1727544650220,0.37276,2682.0,2681.8,3.58058]
[1727544650420,0.37275,2682.1,2681.8,3.58058]
[1727544650623,0.37275,2682.1,2681.8,0.37278]
[1727544652028,0.37275,2682.1,2681.8,0.37279]
[1727544658530,0.37274,2682.2,2681.8,0.37279]
[1727544659128,0.37275,2682.1,2681.8,0.37279]
[1727544659331,0.3742,2682.3,2681.8,0.37279]
[1727544659524,0.37274,2682.2,2681.7,6.4998]
[1727544659724,0.37274,2682.2,2681.9,0.37276]
[1727544660419,0.37274,2682.2,2681.7,6.4998]
[1727544660420,0.37275,2682.1,2681.8,0.37278]
[1727544660624,0.37274,2682.2,2681.9,0.37277]
[1727544660825,0.37274,2682.1,2681.9,0.37277]
[1727544661029,2.90662924,2682.4,2682.3,0.37272]
[1727544661228,7.44282924,2683.0,2682.3,3.2078]
[1727544661427,7.44282924,2683.0,2682.6,0.37267]
[1727544661428,0.37264,2682.9,2682.6,0.37267]
[1727544661832,0.76983,2683.0,2682.6,0.37267]
[1727544662030,0.3972,2683.0,2682.3,8.64532319]
[1727544662233,0.3972,2683.0,2682.2,0.95914524]
[1727544662234,0.37271,2682.4,2682.2,0.95914524]
[1727544662423,0.37271,2682.4,2682.1,0.37274]
[1727544662731,0.37274,2682.2,2681.9,3.98087]
[1727544662927,0.93173,2682.5,2681.9,3.98087]
[1727544662928,0.37275,2682.1,2681.9,3.6081]
[1727544663124,0.37273,2682.2,2681.9,3.98086]
[1727544663625,0.76273,2682.3,2682.0,0.37275]
[1727544664127,0.37273,2682.2,2682.0,0.37275]
[1727544664431,0.76273,2682.3,2682.0,0.37275]
[1727544664934,0.37273,2682.2,2682.0,0.37275]
[1727544665728,0.39,2682.3,2682.0,0.37275]
[1727544666232,0.37274,2682.2,2682.0,0.37275]
[1727544667028,0.37274,2682.2,2681.9,3.98086]
[1727544667335,0.37274,2682.2,2682.0,0.37276]
[1727544669336,0.37274,2682.2,2682.0,3.58056]
[1727544669535,0.76273,2682.3,2682.0,3.58056]
[1727544669934,0.37274,2682.2,2682.0,3.58056]
[1727544670536,0.37274,2682.1,2681.9,0.77306]
[1727544670738,0.39,2682.3,2681.9,0.77306]
[1727544671038,0.37274,2682.1,2681.9,0.77307]
[1727544671337,0.37273,2682.2,2682.0,0.37276]
[1727544671533,0.37274,2682.1,2681.9,0.37276]
[1727544671833,0.37275,2682.1,2681.9,0.37276]
[1727544672339,0.37274,2682.2,2682.0,0.37276]
[1727544672545,9.503,2682.3,2681.7,3.2078]
[1727544672833,0.37285,2681.4,2681.2,0.37286]
[1727544673031,0.37283,2681.5,2681.3,0.37285]
[1727544673536,0.37283,2681.5,2681.4,0.37284]
[1727544673734,0.37283,2681.5,2681.2,7.17200866]
[1727544674032,0.37283,2681.5,2681.2,2.91]
[1727544674236,0.37283,2681.5,2681.4,0.37284]
[1727544674428,0.37283,2681.5,2681.3,0.37285]
[1727544674941,0.37283,2681.5,2681.4,0.37284]
[1727544675636,0.4064,2681.6,2681.3,3.2078]
[1727544675837,0.77922,2681.6,2681.4,0.37283]
[1727544676734,0.37283,2681.5,2681.3,3.2078]
[1727544677043,0.37283,2681.5,2681.4,0.37284]
[1727544677539,0.37283,2681.5,2681.3,3.2078]
[1727544677728,0.37283,2681.5,2681.4,0.37284]
[1727544677924,0.37283,2681.5,2681.3,3.58065]
[1727544679435,0.37284,2681.4,2681.3,3.2078]
[1727544680337,4.10244,2681.4,2681.3,3.2078]
[1727544680732,15.8474,2681.4,2680.8,0.3691]
[1727544680931,0.37292,2680.9,2680.7,0.37293]
[1727544681133,0.93224,2681.1,2680.5,3.6023]
[1727544681334,0.37293,2680.8,2680.6,0.37295]
[1727544681941,0.406,2681.0,2680.6,0.37295]
[1727544681942,0.37292,2680.9,2680.6,0.37295]
[1727544682141,0.37292,2680.9,2680.7,0.37294]
[1727544682441,0.37292,2680.9,2680.6,0.37294]
[1727544683032,0.406,2681.0,2680.6,0.37294]
[1727544683033,0.37293,2680.8,2680.6,0.37294]
[1727544684143,0.37292,2680.9,2680.6,0.37294]
[1727544685036,0.406,2681.0,2680.5,0.3945]
[1727544685235,3.316,2681.0,2680.4,3.2078]
[1727544685443,0.93228,2680.9,2680.4,3.2078]
[1727544685637,0.93232,2680.8,2680.4,3.2078]
[1727544685842,0.37297,2680.5,2680.4,3.2078]
[1727544686344,3.84232,2680.8,2680.2,0.3934]
[1727544686345,0.37299,2680.4,2680.2,0.3934]
[1727544686544,0.93241,2680.6,2680.0,3.58083]
[1727544686751,0.373,2680.3,2680.0,3.95693]
[1727544686944,0.373,2680.3,2680.1,4.22466242]
[1727544687147,0.373,2680.3,2680.0,3.95693]
[1727544687961,0.8035,2680.4,2680.0,3.95693]
[1727544688264,0.37301,2680.3,2680.1,0.37302]
[1727544688464,0.37301,2680.3,2680.0,3.5839]
[1727544688657,0.37301,2680.3,2680.0,3.95693]
[1727544688962,0.37301,2680.3,2680.1,0.37302]
[1727544689462,0.37302,2680.1,2679.9,3.68235]
[1727544689663,0.37302,2680.1,2679.9,3.28305]
[1727544689664,0.37303,2680.1,2679.9,3.28305]
[1727544689965,0.8035,2680.4,2679.9,3.28305]
[1727544690167,0.37303,2680.1,2679.9,2.91]
[1727544690761,0.37302,2680.1,2679.9,3.28304]
[1727544691063,0.37302,2680.2,2679.9,3.28304]
[1727544691265,0.37302,2680.2,2679.9,2.91]
[1727544692360,0.37302,2680.2,2679.9,3.28305]
[1727544693865,0.37302,2680.2,2679.9,0.37305]
[1727544694369,0.37302,2680.2,2679.7,6.69256673]
[1727544694562,0.37302,2680.2,2679.8,0.37306]
[1727544695368,0.37302,2680.2,2679.9,0.37305]
[1727544695864,1.17649,2680.4,2679.9,0.37305]
[1727544696269,4.08649,2680.4,2679.9,0.37305]
[1727544697157,7.29429,2680.4,2679.9,0.37305]
[1727544698066,7.29429,2680.4,2679.8,3.2078]
[1727544698067,7.29429,2680.4,2680.0,0.37304]
[1727544698765,0.37299,2680.3,2679.9,0.37305]
[1727544698972,4.0113,2680.4,2680.1,0.37302]
[1727544699263,4.0113,2680.4,2680.0,0.37303]
[1727544699471,4.0113,2680.4,2679.8,3.2078]
[1727544699669,4.38429,2680.4,2680.1,0.37302]
[1727544700366,0.373,2680.3,2680.1,0.37302]
[1727544700570,4.38429,2680.4,2680.1,0.37301]
[1727544701573,0.373,2680.3,2680.1,0.37302]
[1727544702063,4.38429,2680.4,2680.1,0.37302]
[1727544703069,0.373,2680.3,2680.1,0.37302]
[1727544704173,0.37301,2680.2,2680.0,0.37303]
[1727544704374,4.0113,2680.4,2680.0,0.37303]
[1727544704675,0.373,2680.3,2680.1,0.37302]
[1727544705377,4.0113,2680.4,2680.0,0.37303]
[1727544705678,0.37301,2680.3,2679.8,3.2078]
[1727544705978,0.37301,2680.2,2680.0,0.37303]